Cogmind - Beta 16 @@@ ROGUE MODE // 2026.01.08 @ 11:02:40 Player: Lunishko Result: Self-destructed Performance ------------- Evolutions (2) 1000 Regions Visited (8) 1600 Robots Destroyed (61) 305 Value Destroyed (1695) 1695 Prototype IDs (25) 500 Alien Tech Used (0) 0 Bonus (204) 204 TOTAL SCORE: 5304 Bonus ------- High Alert Combat Kills 19 Follower Combat Kills 185 Cogmind --------- Core Integrity 11/550 Matter 68/300 Energy 160/160 System Corruption 24% Temperature Hot (223) Movement Core (200) Ox3 Location -8/Storage Parts ------- > --- POWER (2) -------- Light Nuclear Core > --- PROPULSION (2) --- (None) > --- UTILITY (5) ------ Small Storage Unit Visual Processing Unit Improved Sensor Array Advanced Targeting Computer > --- WEAPON (2) ------- (None) > --- INVENTORY (8) ---- Deuterium Engine Cryofiber Web Rocket Launcher Improved Datajack Peak State ------------ > --- POWER ------------ Deuterium Engine Deuterium Engine > --- PROPULSION ------- Titanium Leg Titanium Leg > --- UTILITY ---------- Scrap Suit Small Storage Unit Improved Signal Interpreter Makeshift Hacking Suite > --- WEAPON ----------- Latent Energy Streamer Rocket Launcher > --- INVENTORY -------- Carbon-fiber Leg Cryofiber Web Visual Processing Unit Improved Sensor Array Advanced Beam Cannon Improved Datajack Mining Laser [Rating: 41] Favorites ----------- Power Deuterium Engine Engine Deuterium Engine Power Core Light Nuclear Core Propulsion Titanium Leg Treads Light Treads Leg Titanium Leg Utility Small Storage Unit Device Sensor Array Storage Small Storage Unit Processor Signal Interpreter Hackware Makeshift Hacking Suite Weapon Advanced Beam Cannon Energy Gun Small Laser Energy Cannon Advanced Beam Cannon Ballistic Gun Makeshift Shrapnel Gun Launcher Improved Grenade Launcher Special Weapon Mining Laser Slashing Weapon Mining Claw Special Melee Weapon Datajack Build | -11 -10 -10 -9 -9 -9 -8 -8 -8 ------- Run | Yrd Mat Min Mat Min Exi Min Mat Sto Slots Evolved 4 | . . . 2 . . . 2 . Power 1 | . . . . . . . 1 . Propulsion . | . . . . . . . . . Utility 3 | . . . 2 . . . 1 . Weapon . | . . . . . . . . . Parts Attached 47 | 6 2 3 15 1 2 7 10 1 Power 8 | 1 . 1 2 1 . . 2 1 Engine 6 | 1 . . 2 1 . . 2 . Core 2 | . . 1 . . . . . 1 Reactor . | . . . . . . . . . Propulsion 10 | 2 . . 4 . 1 2 1 . Treads 4 | 2 . . 2 . . . . . Leg 6 | . . . 2 . 1 2 1 . Wheel . | . . . . . . . . . Hover . | . . . . . . . . . Flight . | . . . . . . . . . Utility 15 | 1 1 . 4 . 1 3 5 . Device 7 | . 1 . 2 . . 2 2 . Storage 1 | 1 . . . . . . . . Processor 6 | . . . 2 . . 1 3 . Hackware 1 | . . . . . 1 . . . Protection . | . . . . . . . . . Artifact . | . . . . . . . . . Weapon 14 | 2 1 2 5 . . 2 2 . Energy Gun 3 | 2 . . 1 . . . . . Energy Cannon 3 | . . . 2 . . . 1 . Ballistic Gun 2 | . . . 1 . . 1 . . Ballistic Cannon . | . . . . . . . . . Launcher 2 | . . . . . . 1 1 . Special Weapon 2 | . . 2 . . . . . . Impact Weapon . | . . . . . . . . . Slashing Weapon 1 | . . . 1 . . . . . Piercing Weapon . | . . . . . . . . . Special Melee Weapon 1 | . 1 . . . . . . . Unidentified Prototypes 2 | . . . 1 . . 1 . . Parts Lost 18 | . 1 . 3 . . 2 7 5 Power 2 | . . . . . . . 1 1 Propulsion 3 | . . . . . . . 2 1 Utility 4 | . . . 1 . . 1 1 1 Weapon 9 | . 1 . 2 . . 1 3 2 Highest Loss Streak 7 | . 1 . 1 . . 1 3 7 To Critical Strikes . | . . . . . . . . . Average Backups 6 | 1 1 4 7 8 8 7 7 4 Power 1 | . 1 1 1 1 1 1 . 1 Propulsion 1 | . . . 1 2 2 1 . . Utility . | . . . . . 1 1 2 1 Weapon 3 | . . 2 4 4 4 3 2 1 Tool/Special . | . . . . . . . . . Unused Backups 6 | . . . 3 1 1 . . 1 Power . | . . . . . . . . . Propulsion 1 | . . . 1 . . . . . Utility . | . . . . . . . . . Weapon 4 | . . . 2 1 1 . . . Tool/Special 1 | . . . . . . . . 1 Average Slot Usage (%) 95 | . 91 100 95 88 97 99 91 65 Engine 10 | . 14 6 6 11 11 11 15 5 Core 1 | . . 7 4 . . . . 6 Treads 7 | . 28 28 11 . . . . . Leg 14 | . . . 10 22 22 22 17 3 Device 11 | . 7 14 15 11 11 10 9 9 Storage 11 | . 14 14 10 11 11 11 9 9 Processor 10 | . . . 13 11 11 11 13 18 Hackware 4 | . . . . . 8 11 9 9 Energy Gun 3 | . 22 . 5 . . . . . Energy Cannon 7 | . . . 8 13 11 11 2 5 Ballistic Gun 1 | . . . . 4 . 6 . . Launcher 2 | . . . . . . 4 8 . Special Weapon 6 | . . 27 6 4 11 . 5 . Peak Build Rating 41 | 6 7 9 20 19 24 35 41 36 Average Rating 20 | 4 6 8 14 17 22 31 32 22 On Entrance 15 | . 6 6 9 19 18 24 28 30 Avg Prop Armor Cover (%) . | . . . . . . . . . Naked Turns . | . . . . . . . . . Heaviest Build 41 | 13 14 13 24 23 20 23 41 34 Greatest Support 40 | 40 40 40 40 34 37 37 34 15 Greatest Overweight (x) 6 | . . . 1 . . . 2 6 Average Overweight (x) . | . . . . . . . . 2 Largest Inventory Capacity 8 | 8 8 8 8 8 8 8 8 8 Average Capacity 7 | 6 8 8 7 8 8 8 8 8 Most Carried 8 | 5 4 6 8 8 8 8 8 6 Average Carried 6 | 1 1 4 7 7 7 7 7 4 Final Capacity 8 | 8 8 8 8 8 8 8 8 8 Final Carried 8 | 1 4 6 8 8 8 8 6 4 Scrap Suit Usage (%) 7 | . . . . . . . 42 . Parts Cannibalized 3 | . . . . . . . 3 . Class Distribution -------------------- 91% | Mutant 8% | Skirmisher Dominant Class ---------------- Mutant | -10/Materials Mutant | -10/Mines Mutant | -9/Materials Mutant | -9/Mines Mutant | -9/Exiles Mutant | -8/Mines Mutant | -8/Materials Mutant | -8/Storage Resources | -11 -10 -10 -9 -9 -9 -8 -8 -8 ----------- Run | Yrd Mat Min Mat Min Exi Min Mat Sto Matter Collected 1239 | 201 79 30 311 72 . 282 264 . Remotely . | . . . . . . . . . Salvage Created 1539 | . 153 14 399 42 . 157 774 . Parts 117 | . 7 4 34 4 . 17 51 . Haulers Intercepted . | . . . . . . . . . Recyclers Shooed . | . . . . . . . . . Parts Field Recycled . | . . . . . . . . . Retrieved Matter . | . . . . . . . . . Parts Self-Destructed . | . . . . . . . . . Prevented . | . . . . . . . . . Parts Restored . | . . . . . . . . . Kills | -11 -10 -10 -9 -9 -9 -8 -8 -8 ------- Run | Yrd Mat Min Mat Min Exi Min Mat Sto Combat Hostiles Destroyed 50 | . 3 2 15 3 . 11 16 . Guns 18 | . 2 . 8 3 . 5 . . Cannons 14 | . . 2 7 . . 2 3 . AOE 16 | . . . . . . 4 12 . Classes Destroyed 7 | . 2 1 2 . . . 2 . Worker 2 | . . 1 . . . . 1 . Builder 5 | . . . . . . . 5 . Mechanic 1 | . . . . . . . 1 . Watcher 3 | . 1 . 1 . . . 1 . Swarmer 27 | . . . 11 3 . 9 4 . Grunt 17 | . 3 2 . . . 2 10 . Sentry 6 | . . . 4 . . . 2 . Best Kill Streak 10 | . 2 1 4 3 . 3 10 . Combat Bots Only 6 | . 2 1 4 3 . 3 6 . Max Kills in Single Turn 4 | . 1 1 1 1 . 3 4 . Gunslinging . | . . . . . . . . . Exploded 3 | . . . . . . 3 3 . Melee . | . . . . . . . . . Uniques/NPCs Destroyed . | . . . . . . . . . Combat | -11 -10 -10 -9 -9 -9 -8 -8 -8 -------- Run | Yrd Mat Min Mat Min Exi Min Mat Sto Hostile Shots Fired 403 | . 29 16 110 15 . 74 127 32 Missed 126 | . 6 2 37 3 . 20 49 9 Hits 277 | . 23 14 73 12 . 54 78 23 Melee 2 | . . . . . . . 2 . Projectile 275 | . 23 14 73 12 . 54 76 23 Critical Strikes 7 | . 1 1 . . . 1 3 1 Damage Taken 3840 | . 300 214 802 103 . 620 1353 448 Core 961 | . 81 28 162 10 . 141 278 261 Absorbed by Shields . | . . . . . . . . . Regen/Repaired (Parts) 183 | . . . 154 . . . 29 . Core Remaining (%) 59 | 100 . 56 . . . 21 . . Volleys Fired 204 | . 22 8 58 19 . 35 60 2 Largest 2 | . 2 2 2 2 . 2 2 1 Hottest 200 | . 90 200 136 100 . 101 100 60 Shots Fired 296 | . 41 16 92 24 . 52 69 2 Gun 90 | . 41 . 25 5 . 15 4 . Cannon 113 | . . . 47 5 . 26 33 2 Launcher 30 | . . . . . . 11 19 . Special 63 | . . 16 20 14 . . 13 . Kinetic 31 | . . . 7 5 . 15 4 . Thermal 222 | . 41 16 85 19 . 26 35 . Explosive 30 | . . . . . . 11 19 . Electromagnetic 13 | . . . . . . . 11 2 Robot Hit Streak 11 | . 10 3 7 5 . 11 7 . Robot Miss Streak 5 | . 4 2 4 4 . 5 4 . Penetration Max . | . . . . . . . . . Secondary Targets 1 | . . . 1 . . . . . Max Gunslinging Chain 1 | . . . 1 . . . . . Shots Hit Robots 126 | . 26 7 42 5 . 24 22 . Core Hits 112 | . 8 3 17 3 . 15 63 3 Critical Kills 1 | . . . . . . . 1 . Critical Parts Destroyed . | . . . . . . . . . Critical Strikes 3 | . 1 . 1 . . . 1 . Burn 2 | . 1 . 1 . . . . . Meltdown 1 | . . . . . . . 1 . Melee Attacks 5 | . 2 . 3 . . . . . Impact . | . . . . . . . . . Slashing 3 | . . . 3 . . . . . Piercing . | . . . . . . . . . Sneak Attacks 1 | . 1 . . . . . . . Combat Hostiles . | . . . . . . . . . Follow-up Attacks . | . . . . . . . . . Damage Inflicted 4593 | . 288 174 729 82 . 624 2621 75 Guns 920 | . 288 . 255 61 . 233 83 . Cannons 927 | . . . 472 21 . 184 242 8 Explosions 2530 | . . . . . . 167 2296 67 Melee . | . . . . . . . . . Ramming 48 | . . 6 2 . . 40 . . Kinetic 447 | . . . 70 61 . 233 83 . Thermal 1542 | . 288 168 657 21 . 184 224 . Explosive 1468 | . . . . . . 167 1301 . Electromagnetic 1088 | . . . . . . . 1013 75 Impact . | . . . . . . . . . Slashing . | . . . . . . . . . Piercing . | . . . . . . . . . Highest Corruption 24 | . . . . . . . 19 24 Average Corruption 5 | . . . . . . . 4 22 Corruption Purged . | . . . . . . . . . Corruption Blocked . | . . . . . . . . . Effects 35 | . . . . . . . 31 4 Message Errors 11 | . . . . . . . 11 . Matter Fused 9 | . . . . . . . 8 1 Heat Flow Errors 4 | . . . . . . . 3 1 Energy Discharges 2 | . . . . . . . 1 1 Parts Rejected 1 | . . . . . . . 1 . Data Loss (minor) 2 | . . . . . . . 2 . Data Loss (major) 1 | . . . . . . . 1 . Misfires 2 | . . . . . . . 2 . Alerts 2 | . . . . . . . 2 . Misdirections 1 | . . . . . . . . 1 Overload Shots . | . . . . . . . . . Overflow Damage 87 | . . 8 . . . 20 55 4 Projectiles 41 | . . 8 . . . 20 13 . Explosions 46 | . . . . . . . 42 4 Melee . | . . . . . . . . . Knockbacks . | . . . . . . . . . Impact . | . . . . . . . . . Kinetic . | . . . . . . . . . Secondary . | . . . . . . . . . Self-Inflicted Damage 310 | . . . . . . 48 175 87 Shots 6 | . . . . . . 1 4 1 Rammed . | . . . . . . . . . Targets Rammed 17 | . . 1 1 . . 15 . . Kicked 16 | . . . 1 . . 15 . . Crushed 1 | . . 1 . . . . . . Highest Temperature 402 | . 402 80 396 102 . 238 384 250 Average Temperature 80 | . 152 46 94 24 . 60 80 90 Received Heat Transfer 1395 | . 192 135 144 6 . 135 594 189 Effects 5 | . 1 . 2 . . . 1 1 Shutdowns 3 | . 1 . 1 . . . 1 . Energy Bleed 1 | . . . 1 . . . . . Interference 1 | . . . . . . . . 1 Siege Activations . | . . . . . . . . . Martial Activations . | . . . . . . . . . Shielding Activations . | . . . . . . . . . Robots Disrupted . | . . . . . . . . . Combat Hostiles . | . . . . . . . . . Robots Corrupted . | . . . . . . . . . Combat Hostiles . | . . . . . . . . . Parts Fried 5 | . . . . . . . 5 . Impact Corruptions . | . . . . . . . . . Robots Melted 2 | . 1 . . . . . 1 . Combat Hostiles 2 | . 1 . . . . . 1 . Parts Melted 7 | . 2 . 5 . . . . . Heat Transferred 3366 | . 830 350 1409 37 . 333 407 . Parts Sabotaged . | . . . . . . . . . Parts Stolen . | . . . . . . . . . Parts Stripped . | . . . . . . . . . Power Chain Reactions . | . . . . . . . . . Latent Energy Used 1286 | . . . . . . . 1029 257 LE Corruption 23 | . . . . . . . 19 4 Alert | -11 -10 -10 -9 -9 -9 -8 -8 -8 ------- Run | Yrd Mat Min Mat Min Exi Min Mat Sto Maximum Alert Level 2 | . . . 1 . . . 2 1 Low Security (%) 94 | 100 100 100 90 100 . 100 92 . Level 1 4 | . . . 9 . . . 3 100 Level 2 . | . . . . . . . 4 . Level 3 . | . . . . . . . . . Level 4 . | . . . . . . . . . Level 5 . | . . . . . . . . . High Security . | . . . . . . . . . Max Security . | . . . . . . . . . Peak Influence 580 | . 50 52 242 166 . 108 580 313 Initial 243 | . . . . 91 . . . 243 Average 56 | . 5 7 76 56 . 39 85 279 Influence Increases 2695 | . 93 91 677 193 . 463 1048 130 Destroy 0b10 Robot/C 1220 | . 60 40 360 120 . 320 320 . Destroy 0b10 Robot/NC 60 | . 5 5 10 . . . 40 . Destroy Leader 258 | . 22 10 94 20 . 50 62 . Allied During Kill 24 | . . . 5 11 . 8 . . Successful Hack 60 | . 6 . 54 . . . . . Disable Machine 270 | . . . 30 . . 15 165 60 Anti-Garrison Action 150 | . . . . . . . 150 . Destroy Structure 308 | . . 6 19 12 . 40 191 40 Lose Combat Pursuer 345 | . . 30 105 30 . 30 120 30 Influence Decreases 2402 | . 93 91 443 422 5 463 472 413 Entered New Map 481 | . . . . 143 5 . . 333 Time Decay 1731 | . 93 91 413 279 . 423 402 30 Lost Part 170 | . . . 30 . . 20 70 50 Lost Ally 20 | . . . . . . 20 . . Squads Dispatched 12 | . 2 . 4 . . . 6 . Investigation 2 | . . . 1 . . . 1 . Extermination . | . . . . . . . . . Reinforcement 7 | . 2 . 3 . . . 2 . Assault 2 | . . . . . . . 2 . Garrison 1 | . . . . . . . 1 . Intercept . | . . . . . . . . . Searches Triggered . | . . . . . . . . . Construction Impeded 1 | . . . . . . . 1 . Haulers Reinforced . | . . . . . . . . . Active Scanning Responses . | . . . . . . . . . Cargo Convoy Interrupts . | . . . . . . . . . Stealth | -11 -10 -10 -9 -9 -9 -8 -8 -8 --------- Run | Yrd Mat Min Mat Min Exi Min Mat Sto Distress Signals 11 | . 1 . 5 . . . 3 2 Communications Jammed . | . . . . . . . . . Distress Signals . | . . . . . . . . . Times Spotted 114 | . 10 6 29 8 . 17 39 5 Peak Tracking Total 10 | . 5 3 6 3 . 4 10 4 Tactical Retreats 18 | . . 1 5 2 . 2 6 2 Traps | -11 -10 -10 -9 -9 -9 -8 -8 -8 ------- Run | Yrd Mat Min Mat Min Exi Min Mat Sto Traps Triggered 1 | . . . . . . . . 1 Indirectly 1 | . . . . . . . . 1 Trap Hack Attempts . | . . . . . . . . . Triggered . | . . . . . . . . . Disarmed . | . . . . . . . . . Reprogrammed . | . . . . . . . . . Reused . | . . . . . . . . . Traps Extracted . | . . . . . . . . . Installed . | . . . . . . . . . Triggered . | . . . . . . . . . Machines | -11 -10 -10 -9 -9 -9 -8 -8 -8 ---------- Run | Yrd Mat Min Mat Min Exi Min Mat Sto Machines Disabled 19 | . . . 2 . . 1 12 4 Max in Single Turn 3 | . . . 1 . . . 3 2 Garrison Access 1 | . . . . . . . 1 . Machines Repaired . | . . . . . . . . . Machines Dismantled . | . . . . . . . . . Machines Sabotaged . | . . . . . . . . . Overloaded Fab Kills . | . . . . . . . . . Hacking | -11 -10 -10 -9 -9 -9 -8 -8 -8 --------- Run | Yrd Mat Min Mat Min Exi Min Mat Sto Machines Accessed 15 | . 3 1 8 . 2 . 1 . Terminals 10 | . 3 1 6 . . . . . Fabricators . | . . . . . . . . . Repair Stations 2 | . . . 2 . . . . . Recycling Units . | . . . . . . . . . Scanalyzers 1 | . . . . . . . 1 . Garrison Access . | . . . . . . . . . Total Hacks 65 | . 6 2 29 . 24 . 4 . Successful 45 | . 1 . 17 . 24 . 3 . Failed 19 | . 5 2 12 . . . . . Catastrophic 4 | . 2 1 1 . . . . . Database Lockouts 1 | . . . . . . . 1 . Manual 20 | . 4 2 10 . 4 . . . Terminals 26 | . 6 2 18 . . . . . Fabricators . | . . . . . . . . . Repair Stations 11 | . . . 11 . . . . . Recycling Units . | . . . . . . . . . Scanalyzers 4 | . . . . . . . 4 . Garrison Access . | . . . . . . . . . Terminal Hacks 35 | . 1 . 10 . 24 . . . Record 23 | . . . . . 23 . . . Branch Access Points 1 | . . . 1 . . . . . Terminal Index 1 | . . . 1 . . . . . Alert Level 1 | . . . 1 . . . . . Transport Status 1 | . . . 1 . . . . . Hauler Manifests 1 | . . . 1 . . . . . Zone Layout 6 | . 1 . 5 . . . . . Proto ID Catalog 1 | . . . . . 1 . . . Fabricator Hacks . | . . . . . . . . . Repair Station Hacks 7 | . . . 7 . . . . . Scan Component 4 | . . . 4 . . . . . Repair 3 | . . . 3 . . . . . Recycling Unit Hacks . | . . . . . . . . . Scanalyzer 3 | . . . . . . . 3 . Insert Component 1 | . . . . . . . 1 . Analyze 1 | . . . . . . . 1 . Retrieve Study 1 | . . . . . . . 1 . Garrison Access Hacks . | . . . . . . . . . Unauthorized Hacks . | . . . . . . . . . Terminals . | . . . . . . . . . Fabricators . | . . . . . . . . . Repair Stations . | . . . . . . . . . Recycling Units . | . . . . . . . . . Scanalyzers . | . . . . . . . . . Garrison Access . | . . . . . . . . . Data Cores Recovered . | . . . . . . . . . Used . | . . . . . . . . . Hacking Detections 11 | . 3 1 6 . . . 1 . Full Trace Events 1 | . . . . . . . 1 . Feedback Events . | . . . . . . . . . Feedback Blocked . | . . . . . . . . . Robot Schematics Acquired . | . . . . . . . . . Robots Built . | . . . . . . . . . Authchips . | . . . . . . . . . Time . | . . . . . . . . . Total Robot Build Rating . | . . . . . . . . . Part Schematics Acquired 1 | . . . . . . . 1 . Parts Built . | . . . . . . . . . Authchips . | . . . . . . . . . Time . | . . . . . . . . . Total Part Build Rating . | . . . . . . . . . Part Studies Acquired 1 | . . . . . . . 1 . Parts Repaired 3 | . . . 3 . . . . . Time 78 | . . . 78 . . . . . Parts Recycled . | . . . . . . . . . Recycled Matter . | . . . . . . . . . Retrieved Matter . | . . . . . . . . . Retrieved Components . | . . . . . . . . . Parts Scanalyzed 1 | . . . . . . . 1 . Part Schematics Acquired 1 | . . . . . . . 1 . Parts Damaged 1 | . . . . . . . 1 . Bothacking | -11 -10 -10 -9 -9 -9 -8 -8 -8 ------------ Run | Yrd Mat Min Mat Min Exi Min Mat Sto Used RIF Installer . | . . . . . . . . . Robots Hacked 2 | . 2 . . . . . . . Non-combat 2 | . 2 . . . . . . . Combat . | . . . . . . . . . Robot Hacks Applied 2 | . 2 . . . . . . . parse_system 1 | . 1 . . . . . . . no_distress 1 | . 1 . . . . . . . Relay Couplers Released 3 | . . . . . . . 3 . Machine Destruction 3 | . . . . . . . 3 . Fabnet Peak Effective % . | . . . . . . . . . Robots Rewired . | . . . . . . . . . Allies Hacked . | . . . . . . . . . Hacks Repelled . | . . . . . . . . . Allies | -11 -10 -10 -9 -9 -9 -8 -8 -8 -------- Run | Yrd Mat Min Mat Min Exi Min Mat Sto Total Allies 5 | . . 2 . 3 . . . . Largest Group 3 | . . 2 1 3 3 1 . . Highest-Rated Group 47 | . . 47 31 40 40 16 . . Highest-Rated Ally 31 | . . 31 31 16 16 16 . . Total Orders 4 | . . . . 4 . . . . GUARD 4 | . . . . 4 . . . . Ally Attacks 26 | . . . 7 5 . 14 . . Total Damage 308 | . . . 104 48 . 156 . . Kills 12 | . . . 4 3 . 5 . . Allies Corrupted . | . . . . . . . . . Allies Melted . | . . . . . . . . . Intel | -11 -10 -10 -9 -9 -9 -8 -8 -8 ------- Run | Yrd Mat Min Mat Min Exi Min Mat Sto Active Infowar (turns) 5616 | . . . 2202 696 964 887 801 66 Optics 1775 | . . . 910 . . . 800 65 Sensors 4706 | . . . 1292 696 964 887 801 66 Robot Analysis Total . | . . . . . . . . . Derelict Logs Recovered 2 | . . 1 . 1 . . . . Drone Launches . | . . . . . . . . . Drone Recoveries . | . . . . . . . . . Exploration | -11 -10 -10 -9 -9 -9 -8 -8 -8 ------------- Run | Yrd Mat Min Mat Min Exi Min Mat Sto Turns Passed 8228 | 71 681 600 2219 696 964 1527 1404 66 Spaces Moved 4555 | 52 340 318 1188 473 710 1045 405 24 Core 38 | 21 . . . . . . . 17 Treads 1325 | 31 340 318 636 . . . . . Legs 3192 | . . . 552 473 710 1045 405 7 Wheels . | . . . . . . . . . Hover . | . . . . . . . . . Flight . | . . . . . . . . . Fastest Speed 50 | 50 160 160 130 130 130 130 125 190 Average Speed 142 | 115 160 160 146 130 133 131 157 221 Slowest Speed 350 | 160 160 160 200 130 135 135 260 350 Overloaded Moves . | . . . . . . . . . Propulsion Burnouts . | . . . . . . . . . Robots Hopped . | . . . . . . . . . Potential Cave-ins . | . . . . . . . . . Cave-ins Triggered . | . . . . . . . . . Exploration Rate (%) 52 | 4 51 64 66 78 93 92 18 9 Regions Visited 8 Branch Regions 5 Pre-discovered Areas 3 | . . 1 . 1 1 . . . Known Exits Taken 5 | . . . 1 1 1 1 1 . Unknown Exits Taken 3 | 1 1 1 . . . . . . Scrap Searched 4 | . . 1 . 1 . 2 . . Spaces Dug 80 | . . 4 18 13 . 24 21 . Terrain Destroyed 396 | . . 7 18 13 . 119 188 51 Melee 1 | . . . 1 . . . . . Projectile 50 | . . 7 17 13 . 1 12 . AOE 345 | . . . . . . 118 176 51 Terrain Rammed . | . . . . . . . . . Walls Destroyed . | . . . . . . . . . Machines Disabled . | . . . . . . . . . Actions | -11 -10 -10 -9 -9 -9 -8 -8 -8 --------- Run | Yrd Mat Min Mat Min Exi Min Mat Sto Total 5865 | 63 435 360 1529 500 730 1137 1077 34 Wait 923 | . 66 28 211 . . 29 583 6 Move 4547 | 51 339 317 1187 472 709 1044 404 24 Hop . | . . . . . . . . . Pick Up 47 | 6 4 3 21 2 2 3 6 . Fast Attach 10 | 1 . . 6 . 1 1 1 . Attach 26 | 5 1 1 6 . . 1 10 2 Detach 3 | . . . . . . . 3 . Swap 43 | . 1 2 19 5 1 6 9 . Drop 26 | . . . 17 2 3 3 1 . Fire 204 | . 22 8 58 19 . 35 60 2 Melee 5 | . 2 . 3 . . . . . Ram . | . . . . . . . . . Kick 16 | . . . 1 . . 15 . . Crush 1 | . . 1 . . . . . . Escape Stasis . | . . . . . . . . . Rewire 14 | . . . . . 14 . . . Trap . | . . . . . . . . . Miscellaneous . | . . . . . . . . . Route ------- -11/Scrapyard -10/Materials (discovered 2 exits: *Mat / *Min) -10/Mines (discovered 2 exits: *Mat x2) -9/Materials (discovered 4 exits: *Mat x3 / *Min) -9/Mines (discovered 2 exits: *Mat / *Exi) -9/Exiles (discovered 2 exits: *Min x2) -8/Mines (discovered 2 exits: *Mat x2) -8/Materials -8/Storage History --------- Turn | Location | Event 6 | -11/Scrapyard | Discovered new exit (range 13) 72 | -11/Scrapyard | Entered Materials 301 | -10/Materials | Build established: Mutant 555 | -10/Materials | Discovered new exit (range 13) 701 | -10/Materials | Discovered new exit (range 14) 753 | -10/Materials | Entered Mines 779 | -10/Mines | Learned location of Mines (-9) 835 | -10/Mines | Met a Derelict bent on vengeance 918 | -10/Mines | Assembled infested the area 923 | -10/Mines | Assisted by a Guerilla fighting off Assembled 1068 | -10/Mines | Discovered new exit (range 11) 1334 | -10/Mines | Discovered new exit (range 8) 1353 | -10/Mines | Entered Materials 1353 | -9/Materials | Accompanied by 1 ally 1353 | -9/Materials | Evolved 2 slots: Utility x2 1358 | -9/Materials | Led the pair of lost Derelicts to an unsafe place 1371 | -9/Materials | Identified exit to Mines 1612 | -9/Materials | Discovered new exit (range 6) 1712 | -9/Materials | Repaired Lgt. Treads 1738 | -9/Materials | Repaired Sml. Storage Unit 2027 | -9/Materials | Repaired Lgt. Treads 2680 | -9/Materials | Discovered new exit (range 3) 3494 | -9/Materials | Discovered new exit (range 16) 3572 | -9/Materials | Entered Mines 3705 | -9/Mines | Assisted by bots powering up and referring to "LRC-V3" 3707 | -9/Mines | Learned location of Zion (-7) 3749 | -9/Mines | Received a Rocket Launcher from a helpful Derelict 4193 | -9/Mines | Discovered new exit (range 11) 4208 | -9/Mines | Identified exit to Materials 4223 | -9/Mines | Found a damaged Exp. Sensor Array with a note attached 4226 | -9/Mines | Found Prototype Device 4258 | -9/Mines | Deemed a non-threat by the Exiles lab entrance 4260 | -9/Mines | Discovered new exit (range 5) 4265 | -9/Mines | Identified exit to Exiles 4268 | -9/Mines | Entered Exiles 4268 | -9/Exiles | Found Exiles lab destroyed 4268 | -9/Exiles | Accompanied by 3 allies 4517 | -9/Exiles | Discovered new exit (range 15) 4532 | -9/Exiles | Identified exit to Mines 4982 | -9/Exiles | Opened EX-Vault 4990 | -9/Exiles | Found Latent Energy Streamer 5115 | -9/Exiles | Discovered exit to Mines (range 15) 5232 | -9/Exiles | Entered Mines 5232 | -8/Mines | Accompanied by 1 ally 5242 | -8/Mines | Core integrity fell below 50% 5295 | -8/Mines | Identified Exp. Sensor Array 5784 | -8/Mines | Found a Scrap Suit stashed away for nefarious purposes 5790 | -8/Mines | Found Scrap Suit 5834 | -8/Mines | Discovered exit to Materials (range 9) 6143 | -8/Mines | Discovered exit to Materials (range 7) 6759 | -8/Mines | Entered Materials 6759 | -8/Materials | Evolved 2 slots: Power x1, Utility x1 6762 | -8/Materials | Discovered new exit (range 7) 6774 | -8/Materials | Identified exit to Storage 7402 | -8/Materials | Central database locked down 7669 | -8/Materials | Build established: Skirmisher 8095 | -8/Materials | System corruption reached 10% 8161 | -8/Materials | Core integrity fell below 50% 8163 | -8/Materials | Entered Storage 8200 | -8/Storage | Core integrity fell below 20% 8223 | -8/Storage | Lost 7 parts (2p2n3w) 8229 | -8/Storage | Self-destructed Last Messages --------------- 08176_ System corrupted: Energy discharge (-103). 08180_ Adv. Beam Cannon destroyed. 08183_ Terminal disabled. 08183_ Carbon-fiber Leg destroyed. 08183_ Destroyed Carbon-fiber Leg. 08183_ O-16 Technician: "IFF HANDSHAKE FAILED. SECURING TERMINAL." 08186_ Latent Energy Streamer destroyed. 08188_ K-01 Serf collects debris. 08192_ Deuterium Engine+ destroyed. 08192_ K-01 Serf collects debris. 08194_ The unstable cave ceiling collapses. 08196_ K-01 Serf collects debris. 08201_ System corrupted: Matter fused (-9). 08204_ W-25 Informer sends out distress signal. 08205_ K-01 Serf collects debris. 08225_ System corrupted: Heat flow error (+265). 08227_ Mak. Hacking Suite destroyed. 08228_ Overheating: System interference. 08228_ Visual Processing Unit temporarily disabled. 08229_ Critical hit (Burn: +37). Map ----- +----------------------------------------------------+ | ??????????????????????????????????????????? | | ??????????????????????????????????????????? | | ??????????????????????????????????????????? | | ??????????????????????????????????????????? | | ??????????????????????????????????????????? | | ??????????????????????????????????????????? | | ??????????????????????????????????????????? | | ??????????????????????????????????????????? | | ??????????????????????????????????????????? | | ??????????????????????????????????????????? | | ??????????????????????????????????????????? | | ??????????????????????????????????????????? | | ??????????????????????????????????????????? | | ??????????????????????????????????????????? | | ??????????????????????????????????????????? | | ??????????????????????????????????????????? | | ??????????????????????????????????????????? | | ??????????????????????????????????????????? | | ??????????????????????????????????????????? | | ??????????????????????????????????????????? | | ??????????????????????????????????????????? | | ??????????????????????????????????????????? | | ????????????????????????##"##?????????????? | | ????????????????????????#! !#?????????????? | | ???????????????????#????#! !#?????????????? | | ???????????????????# ???#@ !#?????????????? | | ???????????????????# ???#!g!######????????? | | ????????????????#??# ??## # ##???????? | | ????????????????# ?# ##Tg # #???????? | | ????????????????" # # #???????? | | ????????????????" / / #???????? | | ????????????????" # # ##???????? | | ???????????????????# # ##???????? | | ???????????????????# / "#???????? | | ???????????????????# # T"#???????? | | ???????????????????# # "#???????? | | ???????????????????# #! ##???????? | | ??????????????????## " ##????????? | | ?????????????????##" """ ##?????????? | | ????????????????##" """########???????? | | ???????? #???????? | | ???????? #???????? | | ???????? #???????? | | ??????????########" """########???????? | | ?????????????????##"""""" ##??????????????? | | ??????????????????## #????????????????? | | ???????????????????######?????????????????? | | | | | | | +----------------------------------------------------+ Best States ------------- Heat Dissipation 38 Energy Generation 27 Energy Capacity 450 Matter Stores 300 Matter Capacity 300 Sight Range 18 Robot Scan Range 20 Terrain Scan Density 10 Base Temperature (-) 100 Evasion (%) 55 Targeting Accuracy 8 Recoil Reduction 2 Offensive Hacking 11 Item Schematics ----------------- Rocket Launcher | -8/Materials | Scanalyzed Robot Schematics ------------------ None Fabricated ------------ Nothing Repaired ---------- Sml. Storage Unit | 38% | -9/Materials Lgt. Treads | 55% | -9/Materials Studied --------- Deuterium Engine | -8/Materials | Hacked Alien Tech Used ----------------- None Achievements -------------- Blue Mage I Survived The Infestation Luggage Code Challenges ------------ None Game ------ Seed GravjetSixJets Manual? 0 Play Time 01:32:50 Cumulative 13.0 hours Start 2026.01.07 @ 21:38:23 End 2026.01.08 @ 11:02:40 Sessions 3 Manual Loads 0 Difficulty Rogue Special Mode None Game No. 15 Rogue 15 Adventurer 0 Explorer 0 Win Type - Total 0 Types 0/0/0/0/0/0/0/0/0/0 Lore% 16 Gallery% 11 Achievement% 13 Wizard Run 0 Options --------- Layout 0 ASCII 0 Keyboard 0 Movement Mouse Keybinds 0 Fullscreen 2 Font 36/Smallcaps Map View 76x50 Zoom Use 5% Tactical HUD 1 Map Filters NONE Filters NONE Steam 1 RUN: 4cbf645d-e453-44b7-abd8-e1f59d958187